lending/lending_fUSD_20241007
["ID","MTS","AMOUNT","RATE_DAILY","PERIOD"]
[340020483,1728334261804,-5000.0,0.000564,7]
[340020485,1728334261817,-15112.41230381,0.000565,120]
[340020487,1728334261830,-151.0,0.00056603,120]
[340020488,1728334261844,-1000.0,0.00056999,120]
[340020490,1728334261858,-20000.0,0.00057,120]
[340020492,1728334261871,-151.0,0.00057178,120]
[340020494,1728334261885,-150.0,0.0005725,120]
[340020496,1728334261897,-151.0,0.00057425,120]
[340020498,1728334261910,-3000.0,0.000575,90]
[340020500,1728334261923,-173.0,0.00057534,120]
[340020502,1728334261936,-3000.0,0.00057534,14]
[340020503,1728334261949,-151.0,0.00057753,120]
[340020505,1728334261962,-20000.0,0.000578,30]
[340020507,1728334261972,-10000.0,0.0005784,30]
[340020509,1728334261985,-5040.31169783,0.000579,120]
[340020510,1728334261997,-500.0,0.00058,120]
[340020512,1728334262010,-425000.0,0.00058,120]
[340020514,1728334262024,-13618.74977,0.00058,120]
[340020516,1728334262038,-152.26,0.00058219,2]
[340020518,1728334262052,-157.27,0.00058219,2]
[340020520,1728334262067,-155.89,0.00058219,2]
[340020521,1728334262078,-151.0,0.00058329,120]
[340020523,1728334262088,-1000.0,0.000585,120]
[340020524,1728334262099,-3143.43266893,0.000585,120]
[340020526,1728334262115,-384.0,0.000589,120]
[340020528,1728334262129,-20000.0,0.000589,30]
[340020530,1728334262140,-151.0,0.00058904,120]
[340020531,1728334262153,-1969.00048889,0.00058999,120]
[340020533,1728334262166,-578.23019557,0.00059,120]
[340020535,1728334262179,-20000.0,0.00059,120]
[340020537,1728334262191,-1000.0,0.00059,120]
[340020539,1728334262203,-568.41721504,0.0005909,2]
[340020540,1728334262215,-151.0,0.00059479,120]
[340020542,1728334262227,-10000.0,0.0005978,30]
[340020544,1728334262239,-20000.0,0.000599,30]
[340020546,1728334262250,-2067.66015549,0.000599,120]
[340020547,1728334262260,-1000.0,0.00059999,120]
[340020549,1728334262271,-400.0,0.0006,7]
[340020551,1728334262283,-500.0,0.0006,120]
[340020552,1728334262294,-150.0,0.0006,120]
[340020554,1728334262306,-1552.32,0.0006,74]
[340020556,1728334262318,-345.94552626,0.0006,14]
[340020558,1728334262329,-500.0,0.0006,120]
[340020560,1728334262340,-465476.42516155,0.0006,120]
[340020561,1728334262351,-3000.0,0.0006,60]
[340020563,1728334262363,-150.0,0.0006,120]
[340020565,1728334262374,-2000.0,0.0006,2]
[340020567,1728334262385,-600.0,0.0006,120]
[340020568,1728334262397,-1397.46595327,0.0006,120]
[340020570,1728334262409,-641.37419994,0.0006,120]
[340020572,1728334262420,-5000.0,0.0006,120]
[340020574,1728334262433,-25127.80907345,0.0006,120]
[340020576,1728334262444,-431.19,0.0006,30]
[340020577,1728334262454,-17990.93467324,0.0006,84]
[340020579,1728334262464,-13382.92412457,0.0006,85]
[340020580,1728334262473,-151.0,0.00060055,120]
[340020581,1728334262482,-151.0,0.00060137,120]
[340020582,1728334262492,-3250.0,0.00060273,14]
[340020583,1728334262501,-3045.44,0.00060274,120]
[340020584,1728334262510,-1500.0,0.000603,90]
[340020585,1728334262520,-151.0,0.0006063,120]
[340020586,1728334262530,-155.0,0.00061,7]
[340020587,1728334262539,-151.0,0.00061205,120]
[340020588,1728334262549,-158.9,0.00061414,120]
[340020589,1728334262558,-151.0,0.00061781,120]
[340020590,1728334262568,-1000.0,0.00061999,120]
[340020591,1728334262577,-151.0,0.00062356,120]
[340020592,1728334262586,-150.0,0.000625,120]
[340020594,1728334262596,-151.0,0.00062849,120]
[340020596,1728334262605,-151.0,0.00062932,120]
[340020597,1728334262614,-27635.90692131,0.00063,10]
[340020599,1728334262623,-10000.0,0.00063,30]
[340020601,1728334262633,-1500.0,0.00063,90]
[340020603,1728334262643,-751.5140065,0.00063013,14]
[340020605,1728334262653,-151.0,0.00063507,120]
[340020607,1728334262663,-500.0,0.000637,120]
[340020609,1728334262672,-982.81777296,0.000639,120]
[340020611,1728334262683,-2000.0,0.00064,7]
[340020613,1728334262698,-1000.0,0.00064,60]
[340020616,1728334262711,-500.0,0.00064,120]
[340020617,1728334262721,-500.0,0.00064,120]
[340020619,1728334262733,-297.9852507,0.00064,120]
[340020621,1728334262742,-425000.0,0.00064,120]
[340020623,1728334262752,-150000.0,0.00064,120]
[340020625,1728334262762,-151.0,0.00064082,120]
[340020627,1728334262771,-1000.0,0.000644,120]
[340020629,1728334262780,-151.0,0.00064658,120]
[340020631,1728334262789,-42801.5456932,0.000648,5]
[340020633,1728334262799,-162.6,0.00064971,2]
[340020635,1728334262809,-1000.0,0.00064999,120]
[340020656,1728334262995,-18305.04355756,0.00065,120]
[340020658,1728334263005,-1000.0,0.00065,120]
[340020660,1728334263015,-156.51547105,0.00065,120]
[340020662,1728334263025,-150.0,0.00065,120]
[340020664,1728334263036,-1000.0,0.00065,120]
[340020666,1728334263045,-5000.0,0.00065,14]
[340020668,1728334263056,-8500.0,0.00065,120]
[340020669,1728334263066,-151.0,0.00065233,120]
[340020671,1728334263075,-5077.60499477,0.000655,120]
[340020672,1728334263085,-151.0,0.00065562,120]
[340020674,1728334263095,-151.0,0.00065808,120]
[340020676,1728334263108,-146025.45891005,0.00066,30]
[340020678,1728334263118,-300.0,0.00066,120]
[340020680,1728334263127,-2851795.51339104,0.00066,60]
[340020683,1728334263150,-80000.0,0.00066,60]
[340028669,1728334358245,150.0,0.00013,3]
[340028670,1728334478200,164.78021111,0.000125,3]
[340028671,1728334502053,500.0,8.544e-05,2]
[340028672,1728334502415,778.0,8.544e-05,2]
[340028729,1728335432403,-15562.8204,0.000109,2]
[340028731,1728335432413,-167.34,0.00010959,2]
[340028732,1728335432422,-152.26,0.00010959,2]
[340028733,1728335432431,-157.55,0.00010959,2]
[340028734,1728335432441,-250.0,0.00011,2]
[340028735,1728335432450,-300.0,0.00013,2]
[340028736,1728335432460,-350.0,0.00015,2]
[340028737,1728335432469,-400.0,0.00017,2]
[340028738,1728335432479,-3350.0,0.00023132,2]
[340028739,1728335432489,-150.99,0.00023132,2]
[340028740,1728335432498,-499.99,0.00023132,2]
[340028741,1728335432510,-5873.0,0.00023132,2]
[340028742,1728335432518,-13507.0,0.00023132,2]
[340028743,1728335432528,-157.55,0.00023562,2]
[340028744,1728335432537,-249.212,0.00026638,14]
[340028745,1728335432547,-151.0,0.00034887,2]
[340028746,1728335432556,-3000.0,0.000351,2]
[340028747,1728335432566,-157.55,0.00036164,2]
[340028749,1728335432575,-6507.80399326,0.0003726,3]
[340028750,1728335432585,-894.55895516,0.00037611,2]
[340028751,1728335432594,-159.57,0.00037711,2]
[340028752,1728335432604,-3000.0,0.000378,2]
[340028753,1728335432613,-2751.0,0.00038482,120]
[340028754,1728335432622,-1000.0,0.00038493,120]
[340028755,1728335432632,-250.0,0.00038514,2]
[340028756,1728335432641,-418.24,0.00038628,2]
[340028757,1728335432654,-1186.85,0.00038897,2]
[340028758,1728335432664,-250.0,0.0003892,2]
[340028759,1728335432673,-6781.67821632,0.00039484,30]
[340028766,1728335438420,-3214.56178368,0.00039484,30]
[340028767,1728335438443,-500.0,0.00039607,2]
[340028771,1728335438465,-200.0,0.00039669,2]
[340028773,1728335438488,-11551.82,0.00039669,2]
[340028774,1728335438510,-1000.0,0.00039744,2]
[340028775,1728335438532,-158.9,0.00039994,120]
[340028776,1728335438555,-172.62,0.00040405,2]
[340028777,1728335438576,-3000.0,0.000405,2]
[340028778,1728335438598,-203.58,0.00040557,120]
[340028779,1728335438619,-218.86,0.00040562,2]
[340028780,1728335438640,-176.93,0.0004064,2]
[340028781,1728335438666,-159.57,0.00040784,2]
[340028782,1728335438686,-166.5,0.00040807,120]
[340028783,1728335438708,-920.0,0.00041931,7]
[340028784,1728335438730,-152.26,0.00042466,2]
[340028785,1728335438751,-894.55895515,0.00042495,2]
[340028786,1728335438771,-1020.0492857,0.00042958,5]
[340028787,1728335438792,-1500.0,0.000433,2]
[340028788,1728335438814,-159.57,0.00043856,2]
[340028789,1728335438838,-180.0,0.00043938,120]
[340028790,1728335438860,-599.20244667,0.00044079,30]
[340028791,1728335438881,-1000.0,0.00044712,2]
[340028792,1728335438902,-1500.0,0.00046,2]
[340028793,1728335438924,-159.57,0.00046929,2]
[340028794,1728335438946,-323.6816344,0.00047379,2]
[340028795,1728335438967,-682.32785936,0.00047379,19]
[340028796,1728335438989,-157.73808721,0.00047379,28]
[340028797,1728335439011,-894.55895515,0.00047379,2]
[340028798,1728335439035,-54914.1616757,0.0004743,8]
[340028799,1728335439058,-500.0,0.00047439,120]
[340028800,1728335439082,-500.0,0.00047439,120]
[340028801,1728335439104,-2916.66,0.00047439,120]
[340028802,1728335439125,-300000.0,0.0004744,30]
[340028803,1728335439275,-249.212,0.00047479,80]
[340028804,1728335439299,-500.0,0.00047713,120]
[340028805,1728335439323,-500.0,0.00047713,120]
[340028806,1728335439346,-2916.66,0.00047713,120]
[340028807,1728335439369,-433.97858456,0.00047987,120]
[340028808,1728335439391,-163.62505521,0.00047987,120]
[340028809,1728335439414,-2916.66,0.00047987,120]
[340028810,1728335439437,-2916.66,0.00048261,120]
[340028811,1728335439459,-5372.9449,0.0004834,120]
[340028812,1728335439482,-146437.764468,0.0004843,8]
[340028813,1728335439505,-61720.4345175,0.0004843,8]
[340028814,1728335439527,-300000.0,0.0004844,30]
[340028815,1728335439549,-2916.66,0.00048535,120]
[340028816,1728335439573,-157.55,0.00048767,2]
[340028817,1728335439595,-2916.66,0.00048809,120]
[340028818,1728335439618,-18304.7205586,0.00049073,8]
[340028819,1728335439642,-8817.20493107,0.00049073,8]
[340028820,1728335439668,-2916.66,0.00049083,120]
[340028821,1728335439690,-2916.66,0.00049357,120]
[340028822,1728335439716,-47228.26430204,0.0004943,8]
[340028824,1728335440418,-31082.68486843,0.0004943,8]
[340028825,1728335440640,-68126.81529753,0.0004943,8]
[340028826,1728335440651,-25375.07846119,0.0004943,8]
[340028827,1728335440664,-1068.9718029,0.0004943,8]
[340028834,1728335443350,-89093.85,0.0004943,8]
[340028835,1728335443515,-1611.83923683,0.0004943,8]
[340028841,1728335446397,-252.763,0.0004943,8]
[340028842,1728335446507,-491.71170126,0.0004943,8]
[340028843,1728335446519,-1221.425,0.0004943,8]
[340028844,1728335446575,-12217.23391147,0.0004943,8]
[340028880,1728336631596,-157.73808721,0.000109,2]
[340028881,1728336631606,-742.26191279,0.000109,2]
[340028882,1728336631658,-2649.23302545,0.000109,2]
[340028883,1728336631669,-994.51863014,0.000109,2]
[340028884,1728336631678,-162.25,0.00010959,2]
[340028885,1728336631687,-156.51,0.00010959,2]
[340028886,1728336631695,-749.49,0.00010959,2]
[340028887,1728336631704,-6574.78665828,0.00010959,2]
[340028888,1728336631713,-150.0,0.00010999,2]
[340028889,1728336631722,-250.0,0.00011,2]
[340028890,1728336631731,-6270.83852804,0.00011,2]
[340028901,1728336637748,-5488.263201,0.00011,2]
[340028902,1728336637759,-19022.3346819,0.00011,2]
[340028903,1728336637920,-601.18609292,0.00011,2]
[340029056,1728336642909,-3.84886823,0.00011,2]
[340029059,1728336643029,-1901.98638,0.00011,2]
[340029063,1728337135077,600.0,0.000102,3]
[340029064,1728337137234,1200.0,0.000103,3]
[340029065,1728337139375,1800.0,0.000104,3]
[340029066,1728337141775,2500.0,0.000105,3]
[340029067,1728337143930,3100.0,0.000106,3]
[340029068,1728337146049,600.0,0.000107,3]
[340029069,1728337148367,600.0,0.000108,3]
[340029070,1728337150353,600.0,0.000109,3]
[340029071,1728337192440,-158.97,0.00022277,30]
[340029072,1728337192466,-166.5,0.00031873,120]
[340029073,1728337192490,-203.58,0.00034173,120]
[340029074,1728337192514,-199.37,0.00035585,42]
[340029075,1728337192537,-250.0,0.00035855,120]
[340029076,1728337192561,-624.5,0.00038356,120]
[340029077,1728337192584,-177.86065227,0.00038356,120]
[340029078,1728337192608,-500.0,0.00038356,120]
[340029079,1728337192632,-500.0,0.00038356,120]
[340029080,1728337192657,-500.0,0.00038356,120]
[340029081,1728337192680,-500.0,0.00038356,120]
[340029082,1728337192703,-500.0,0.00038356,120]
[340029083,1728337192725,-500.0,0.00038356,120]
[340029084,1728337192748,-500.0,0.00038356,120]
[340029085,1728337192771,-500.0,0.00038356,120]
[340029086,1728337192794,-500.0,0.00038356,120]
[340029087,1728337192816,-500.0,0.00038356,120]
[340029088,1728337192839,-500.0,0.00038356,120]
[340029089,1728337192862,-500.0,0.00038356,120]
[340029090,1728337192884,-500.0,0.00038356,120]
[340029091,1728337192907,-500.0,0.00038356,120]
[340029092,1728337192934,-500.0,0.00038356,120]
[340029093,1728337192956,-500.0,0.00038356,120]
[340029094,1728337192980,-500.0,0.00038356,120]
[340029095,1728337193003,-500.0,0.00038356,120]
[340029096,1728337193026,-500.0,0.00038356,120]
[340029097,1728337193049,-500.0,0.00038356,120]
[340029098,1728337193072,-500.0,0.00038356,120]
[340029099,1728337193096,-3126.45,0.00038356,120]
[340029100,1728337193120,-469.80161188,0.0003836,120]
[340029101,1728337193143,-469.80161188,0.0003836,120]
[340029102,1728337193166,-469.80161188,0.0003836,120]
[340029103,1728337193190,-469.80161188,0.0003836,120]
[340029104,1728337193213,-469.80161188,0.0003836,120]
[340029105,1728337193236,-469.80161188,0.0003836,120]
[340029106,1728337193259,-469.80161188,0.0003836,120]
[340029107,1728337193283,-469.80161188,0.0003836,120]
[340029108,1728337193306,-469.80161188,0.0003836,120]
[340029109,1728337193329,-469.80161188,0.0003836,120]
[340029110,1728337193351,-469.80161188,0.0003836,120]
[340029111,1728337193374,-469.80161188,0.0003836,120]
[340029112,1728337193397,-469.80161188,0.0003836,120]
[340029113,1728337193423,-469.80161188,0.0003836,120]
[340029114,1728337193446,-469.80161188,0.0003836,120]
[340029115,1728337193470,-469.80161188,0.0003836,120]
[340029116,1728337193495,-469.80161188,0.0003836,120]
[340029117,1728337193518,-469.80161188,0.0003836,120]
[340029118,1728337193542,-469.80161188,0.0003836,120]
[340029119,1728337193567,-470.3,0.0003836,120]
[340029120,1728337193592,-650.19685765,0.0003836,120]
[340029121,1728337193616,-650.19685765,0.0003836,120]
[340029122,1728337193643,-650.19685765,0.0003836,120]
[340029123,1728337193667,-650.19685765,0.0003836,120]
[340029124,1728337193692,-650.19685765,0.0003836,120]
[340029125,1728337193716,-650.19685765,0.0003836,120]
[340029126,1728337193741,-650.19685765,0.0003836,120]
[340029127,1728337193766,-650.19685765,0.0003836,120]
[340029128,1728337193792,-650.19685765,0.0003836,120]
[340029129,1728337193821,-650.19685765,0.0003836,120]
[340029130,1728337193850,-650.19685765,0.0003836,120]
[340029131,1728337193879,-650.19685765,0.0003836,120]
[340029132,1728337193907,-650.19685765,0.0003836,120]
[340029133,1728337193933,-650.19685765,0.0003836,120]
[340029134,1728337193957,-650.19685765,0.0003836,120]
[340029135,1728337193981,-650.19685765,0.0003836,120]
[340029136,1728337194005,-650.19685765,0.0003836,120]
[340029137,1728337194035,-650.19685765,0.0003836,120]
[340029138,1728337194060,-650.19685765,0.0003836,120]
[340029139,1728337194084,-650.69,0.0003836,120]
[340029140,1728337194199,-683.11921251,0.0003836,120]
[340029141,1728337194224,-683.11921251,0.0003836,120]
[340029142,1728337194248,-683.11921251,0.0003836,120]
[340029143,1728337194272,-683.11921251,0.0003836,120]
[340029144,1728337194295,-683.11921251,0.0003836,120]
[340029145,1728337194320,-683.11921251,0.0003836,120]
[340029146,1728337194343,-683.11921251,0.0003836,120]
[340029147,1728337194366,-683.11921251,0.0003836,120]
[340029148,1728337194390,-683.11921251,0.0003836,120]
[340029149,1728337194415,-683.11921251,0.0003836,120]
[340029150,1728337194439,-683.11921251,0.0003836,120]
[340029151,1728337194463,-683.11921251,0.0003836,120]
[340029152,1728337194489,-683.11921251,0.0003836,120]
[340029153,1728337194513,-683.11921251,0.0003836,120]
[340029154,1728337194535,-683.11921251,0.0003836,120]
[340029155,1728337194558,-683.11921251,0.0003836,120]
[340029156,1728337194582,-683.11921251,0.0003836,120]
[340029157,1728337194604,-683.11921251,0.0003836,120]
[340029158,1728337194627,-683.11921251,0.0003836,120]
[340029159,1728337194652,-683.61,0.0003836,120]
[340029160,1728337194676,-624.5,0.0003863,120]
[340029161,1728337194700,-500.0,0.0003863,120]
[340029162,1728337194724,-3126.45,0.0003863,120]
[340029163,1728337194747,-624.5,0.00038904,120]
[340029164,1728337194771,-433.97858456,0.00038904,120]
[340029165,1728337194794,-3126.45,0.00038904,120]
[340029166,1728337194817,-624.5,0.00039178,120]
[340029167,1728337194842,-3126.45,0.00039178,120]
[340029168,1728337194865,-624.5,0.00039452,120]
[340029169,1728337194889,-3126.45,0.00039452,120]
[340029170,1728337194912,-624.5,0.00039726,120]
[340029171,1728337194938,-3126.45,0.00039726,120]
[340029172,1728337194961,-624.5,0.0004,120]
[340029173,1728337194985,-3126.45,0.0004,120]
[340029174,1728337195008,-624.5,0.00040273,120]
[340029175,1728337195032,-3126.45,0.00040273,120]
[340029176,1728337195056,-624.5,0.00040547,120]
[340029177,1728337195079,-3126.45,0.00040547,120]
[340029178,1728337195102,-624.5,0.00040821,120]
[340029179,1728337195126,-3126.45,0.00040821,120]
[340029180,1728337195151,-624.5,0.00041095,120]
[340029181,1728337195174,-3126.45,0.00041095,120]
[340029182,1728337195199,-624.5,0.00041369,120]
[340029183,1728337195222,-3126.45,0.00041369,120]
[340029184,1728337195245,-624.5,0.00041643,120]
[340029185,1728337195269,-3126.45,0.00041643,120]
[340029186,1728337195291,-3214.56,0.00041902,30]
[340029187,1728337195314,-624.5,0.00041917,120]
[340029188,1728337195338,-3126.45,0.00041917,120]
[340029189,1728337195361,-624.5,0.00042191,120]
[340029190,1728337195384,-3126.45,0.00042191,120]
[340029191,1728337195410,-624.5,0.00042465,120]
[340029192,1728337195434,-3126.45,0.00042465,120]
[340029193,1728337195457,-624.5,0.00042739,120]
[340029194,1728337195481,-3126.45,0.00042739,120]
[340029195,1728337195504,-624.5,0.00043013,120]
[340029196,1728337195527,-3126.45,0.00043013,120]
[340029197,1728337195550,-624.5,0.00043287,120]
[340029198,1728337195573,-3126.45,0.00043287,120]
[340029199,1728337195596,-624.5,0.00043561,120]
[340029200,1728337195619,-3126.45,0.00043561,120]
[340029201,1728337195643,-624.5,0.00043835,120]
[340029202,1728337195667,-3126.45,0.00043835,120]
[340029203,1728337195690,-599.22398495,0.00044079,30]
[340029204,1728337195713,-624.5,0.00044109,120]
[340029205,1728337195737,-3126.45,0.00044109,120]
[340029206,1728337195760,-624.5,0.00044383,120]
[340029207,1728337195784,-3126.45,0.00044383,120]
[340029208,1728337195806,-624.65677362,0.00044657,120]
[340029209,1728337195830,-3126.65,0.00044657,120]
[340029210,1728337368861,-1329.152862,0.00010726,2]
[340029211,1728337368884,-199.369,0.0001078,2]
[340029212,1728337368908,-262.1187,0.000109,2]
[340029213,1728337368932,-7500.0,0.000109,2]
[340029214,1728337368955,-474.2105,0.000109,2]
[340029215,1728337368978,-680.3106,0.000109,2]
[340029216,1728337369001,-47645.2758,0.000109,2]
[340029217,1728337369024,-150.0,0.00010943,2]
[340029218,1728337369047,-1735.11895935,0.00010944,2]
[340029219,1728337369069,-983.65279474,0.00010944,2]
[340029220,1728337369093,-2726.44654206,0.00010944,2]
[340029221,1728337369116,-160.72,0.00010959,2]
[340029222,1728337369138,-2374.31376487,0.0001099,2]
[340029223,1728337369161,-237.47651731,0.0001099,2]
[340029224,1728337369185,-500.0,0.00010999,2]
[340029225,1728337369208,-176.34629431,0.00010999,2]
[340029226,1728337369231,-317.08120117,0.00010999,2]
[340029227,1728337369258,-16296533.34114405,0.00011,2]
[340029228,1728337369283,-7107.74,0.00011044,2]
[340029229,1728337369305,-499.99,0.00011044,2]
[340029230,1728337369328,-255.0,0.00011983,2]
[340029231,1728337369351,-300.0,0.00013,2]
[340029232,1728337369374,-433.0,0.00013121,2]
[340029233,1728337369398,-350230.320021,0.000138,3]
[340029234,1728337369422,-21158.6554347,0.000139,3]
[340029235,1728337369445,-159.57,0.00014671,2]
[340029236,1728337369472,-350.0,0.00015,2]
[340029237,1728337369495,-250.0,0.00016064,2]
[340029238,1728337369517,-150.0,0.000161,2]
[340029239,1728337369543,-500.0,0.00016244,2]
[340029240,1728337369565,-173.63,0.00016438,2]
[340029241,1728337369587,-176.93,0.00016878,2]
[340029242,1728337369610,-400.0,0.00017,2]
[340029243,1728337369634,-159.57,0.0001798,2]
[340029244,1728337369657,-1000.0,0.00017985,2]
[340029245,1728337369680,-450.0,0.00019,2]
[340029246,1728337369702,-200.0,0.00019173,2]
[340029247,1728337369726,-1000.0,0.00020233,2]
[340029248,1728337369748,-250.0,0.00020527,2]
[340029249,1728337369770,-500.0,0.00021,2]
[340029250,1728337369793,-203.58,0.00021053,2]
[340029251,1728337369816,-159.57,0.00021288,2]
[340029252,1728337369960,-166.5,0.00021918,2]
[340029253,1728337372642,250.0,0.00011,2]
[340029254,1728337373731,300.0,0.00013,2]
[340029255,1728337374811,350.0,0.00015,2]
[340029256,1728337375881,400.0,0.00017,2]
[340029257,1728337376490,5372.9449,0.000109,2]
[340029258,1728337376959,450.0,0.00019,2]
[340029259,1728337378059,500.0,0.00021,2]
[340029267,1728337819068,-474.2105,0.000109,2]
[340029268,1728337819092,-156.48,0.00010959,2]
[340029269,1728337819116,-150.0,0.000161,2]
[340029270,1728337819140,-173.63,0.00016438,2]
[340029271,1728337819164,-407.62438002,0.00021863,2]
[340029272,1728337819189,-1000.0,0.00022481,2]
[340029273,1728337819213,-1329.152862,0.00022885,2]
[340029274,1728337819236,-499.99,0.00022885,2]
[340029275,1728337819258,-200.0,0.00023,2]
[340029276,1728337819280,-550.0,0.00023,2]
[340029277,1728337819304,-156.51,0.00023562,2]
[340029278,1728337819328,-156.48,0.00023562,2]
[340029279,1728337819352,-1000.0,0.0002473,2]
[340029280,1728337819374,-600.0,0.00025,2]
[340029281,1728337819397,-162.64,0.0002552,2]
[340029282,1728337819421,-1000.0,0.00026978,2]
[340029283,1728337819445,-2004.537766,0.00027,2]
[340029284,1728337819469,-400.0,0.0002733,2]
[340029285,1728337819491,-250.0,0.00027397,2]
[340029286,1728337819514,-11551.82,0.00027397,2]
[340029287,1728337819536,-203.58,0.00027664,120]
[340029288,1728337819560,-200.0,0.00027771,2]
[340029289,1728337819584,-162.64,0.00027784,2]
[340029290,1728337819608,-289.8,0.00027804,2]
[340029291,1728337819630,-890.0,0.00027999,2]
[340029292,1728337819656,-1348.778,0.00028,2]
[340029293,1728337819679,-449.0,0.00028,2]
[340029294,1728337819702,-820.527,0.00028,2]
[340029295,1728337819728,-625.0,0.00028,2]
[340029296,1728337819749,-653.805,0.00028,2]
[340029297,1728337819773,-999.542,0.00028,2]
[340029298,1728337819794,-554.0,0.00028,2]
[340029299,1728337819818,-1905.0,0.00028,2]
[340029300,1728337819843,-424.389,0.00028,2]
[340029301,1728337819864,-1910.0,0.00028,2]
[340029302,1728337819888,-1082.0,0.00028,2]
[340029303,1728337819911,-250.0,0.0002805,2]
[340029304,1728337819935,-158.92,0.0002808,30]
[340029305,1728337819957,-218.86,0.00028793,2]
[340029306,1728337819981,-162.64,0.00030048,2]
[340029307,1728337820004,-500.0,0.00030136,2]
[340029308,1728337820026,-180.0,0.00030518,120]
[340029309,1728337820048,-400.0,0.00030746,2]
[340029310,1728337820071,-200.0,0.00031819,2]
[340029311,1728337820093,-162.64,0.00032312,2]
[340029312,1728337820117,-400.45853802,0.00032363,15]
[340029313,1728337820140,-250.0,0.00032456,2]
[340029314,1728337820162,-633.2,0.00032526,2]
[340029315,1728337820183,-262.1187,0.00032526,2]
[340029316,1728337820204,-680.3106,0.00032526,2]
[340029317,1728337820226,-1451.1123,0.00032526,2]
[340029318,1728337820249,-1232.9,0.00032526,2]
[340029319,1728337820272,-2374.31376487,0.00032616,2]
[340029320,1728337820294,-150.0,0.00032619,120]
[340029321,1728337820316,-176.34629431,0.00032625,2]
[340029322,1728337820338,-209.12,0.00032731,2]
[340029323,1728337820360,-750.0,0.00032876,2]
[340029324,1728337820383,-501.252194,0.00033,14]
[340029325,1728337820404,-400.0,0.00034163,2]
[340029326,1728337820426,-162.64,0.00034575,2]
[340029327,1728337820448,-1101.88946499,0.00035616,2]
[340029328,1728337820471,-188.306496,0.00035616,2]
[340029329,1728337820492,-157.1514,0.00035616,2]
[340029330,1728337820513,-188.306496,0.00035616,2]
[340029331,1728337820536,-3000.0,0.000359,2]
[340029332,1728337820557,-172.62,0.00035955,2]
[340029333,1728337820580,-156.51,0.00036164,2]
[340029334,1728337820602,-156.48,0.00036164,2]
[340029335,1728337820624,-162.64,0.00036839,2]
[340029336,1728337820647,-150.0,0.00036888,120]
[340029337,1728337820763,-400.0,0.00037579,2]
[340029338,1728337820786,-168.65437,0.00037893,2]
[340029339,1728337820809,-163.134646,0.00037893,2]
[340029340,1728337820831,-261.015434,0.00037893,2]
[340029341,1728337820854,-168.65437,0.00037893,2]
[340029342,1728337820878,-261.015434,0.00037893,2]
[340029343,1728337820901,-150.0,0.000379,2]
[340029344,1728337820924,-618.73,0.00038346,10]
[340029345,1728337820947,-849.92,0.00038346,10]
[340029346,1728337820969,-1300.28,0.00038356,120]
[340029347,1728337820990,-624.5,0.00038356,120]
[340029348,1728337821013,-500.0,0.00038356,120]
[340029349,1728337821037,-369.25,0.00038356,120]
[340029350,1728337821060,-500.0,0.00038356,120]
[340029351,1728337821082,-1232.72,0.00038356,120]
[340029352,1728337821104,-500.0,0.00038356,120]